[Event "Titled Tuesday Blitz December 27 Late 2022"]
[White "Preotu, Razvan"]
[Black "Vlassov, Nikolai"]
[WhiteFideId "2613280"]
[BlackFideId "4103360"]
[WhiteElo "2475"]
[BlackElo "2283"]
[Result "1-0"]
[Round "11"]
[TimeControl "180+2"]
[Date "2022.12.27"]
[WhiteClock "0:00:39"]
[BlackClock "0:00:36"]

1. e4 {[%clk 0:03:00]}  Nc6 {[%clk 0:02:57]} 2. Nf3 {[%clk 0:02:59]}  d5 {[%clk 0:02:57]} 3. exd5 {[%clk 0:03:00]}  Qxd5 {[%clk 0:02:58]} 4. Nc3 {[%clk 0:03:00]}  Qa5 {[%clk 0:02:58]} 5. Bb5 {[%clk 0:03:01]}  Bd7 {[%clk 0:02:58]} 6. d4 {[%clk 0:02:59]}  a6 {[%clk 0:02:57]} 7. Ba4 {[%clk 0:02:59]}  O-O-O {[%clk 0:02:53]} 8. O-O {[%clk 0:02:58]}  Qh5 {[%clk 0:02:43]} 9. d5 {[%clk 0:02:49]}  b5 {[%clk 0:02:28]} 10. Bb3 {[%clk 0:02:02]}  Bg4 {[%clk 0:02:27]} 11. h3 {[%clk 0:01:23]}  Bxf3 {[%clk 0:02:26]} 12. Qxf3 {[%clk 0:01:24]}  Qxf3 {[%clk 0:02:25]} 13. gxf3 {[%clk 0:01:25]}  Nd4 {[%clk 0:02:23]} 14. Be3 {[%clk 0:01:26]}  Nxb3 {[%clk 0:02:06]} 15. axb3 {[%clk 0:01:26]}  Kb7 {[%clk 0:02:05]} 16. Nxb5 {[%clk 0:01:25]}  axb5 {[%clk 0:02:00]} 17. Ra7+ {[%clk 0:01:26]}  Kc8 {[%clk 0:02:00]} 18. Bf4 {[%clk 0:01:20]}  Rxd5 {[%clk 0:01:52]} 19. Ra8+ {[%clk 0:01:08]}  Kd7 {[%clk 0:01:44]} 20. Rxf8 {[%clk 0:01:08]}  e5 {[%clk 0:01:43]} 21. c4 {[%clk 0:00:52]}  bxc4 {[%clk 0:01:31]} 22. bxc4 {[%clk 0:00:53]}  Rc5 {[%clk 0:01:31]} 23. Be3 {[%clk 0:00:49]}  Rxc4 {[%clk 0:01:28]} 24. Rd1+ {[%clk 0:00:49]}  Ke7 {[%clk 0:01:28]} 25. Rdd8 {[%clk 0:00:50]}  f5 {[%clk 0:01:17]} 26. b4 {[%clk 0:00:45]}  f4 {[%clk 0:00:59]} 27. Bc5+ {[%clk 0:00:44]}  Ke6 {[%clk 0:01:00]} 28. Rxg8 {[%clk 0:00:38]}  Rxg8 {[%clk 0:00:59]} 29. Rxg8 {[%clk 0:00:39]}  g6 {[%clk 0:00:53]} 30. Rg7 {[%clk 0:00:39]}  c6 {[%clk 0:00:52]} 31. Rxh7 {[%clk 0:00:39]}  Rc3 {[%clk 0:00:36]} 32. Kg2 {[%clk 0:00:39]} 1-0


[Site "https://www.chess.com"]

[Event "Titled Tuesday Blitz December 27 Late 2022"]
[White "Prieto Aranguren, Alain"]
[Black "Silvestre, Christian"]
[WhiteFideId "2268906"]
[BlackFideId "30956269"]
[WhiteElo "2258"]
[BlackElo "1942"]
[Result "1/2-1/2"]
[Round "11"]
[TimeControl "180+2"]
[Date "2022.12.27"]
[WhiteClock "0:01:16"]
[BlackClock "0:00:55"]

1. e4 {[%clk 0:02:58]}  c6 {[%clk 0:02:45]} 2. d4 {[%clk 0:02:57]}  g6 {[%clk 0:02:44]} 3. f4 {[%clk 0:02:56]}  Bg7 {[%clk 0:02:45]} 4. Nf3 {[%clk 0:02:56]}  d5 {[%clk 0:02:45]} 5. e5 {[%clk 0:02:56]}  Bg4 {[%clk 0:02:45]} 6. Be2 {[%clk 0:02:56]}  e6 {[%clk 0:02:45]} 7. O-O {[%clk 0:02:56]}  Ne7 {[%clk 0:02:44]} 8. c3 {[%clk 0:02:56]}  Nd7 {[%clk 0:02:44]} 9. Qe1 {[%clk 0:02:56]}  c5 {[%clk 0:02:43]} 10. Qg3 {[%clk 0:02:54]}  h5 {[%clk 0:02:42]} 11. h3 {[%clk 0:02:52]}  Nf5 {[%clk 0:02:41]} 12. Qf2 {[%clk 0:02:50]}  Bxf3 {[%clk 0:02:40]} 13. Bxf3 {[%clk 0:02:50]}  cxd4 {[%clk 0:02:40]} 14. cxd4 {[%clk 0:02:49]}  Bf8 {[%clk 0:02:36]} 15. Kh2 {[%clk 0:02:43]}  h4 {[%clk 0:02:33]} 16. Bg4 {[%clk 0:02:41]}  Ng3 {[%clk 0:02:32]} 17. Rd1 {[%clk 0:02:36]}  Rc8 {[%clk 0:02:31]} 18. Nc3 {[%clk 0:02:36]}  Bb4 {[%clk 0:02:28]} 19. Bd2 {[%clk 0:02:34]}  Bxc3 {[%clk 0:02:27]} 20. Bxc3 {[%clk 0:02:34]}  Ne4 {[%clk 0:02:24]} 21. Qf3 {[%clk 0:02:33]}  Nxc3 {[%clk 0:02:24]} 22. bxc3 {[%clk 0:02:33]}  Qa5 {[%clk 0:02:24]} 23. Rac1 {[%clk 0:02:31]}  Rc6 {[%clk 0:02:17]} 24. Rf1 {[%clk 0:02:22]}  Ke7 {[%clk 0:02:13]} 25. c4 {[%clk 0:02:18]}  dxc4 {[%clk 0:02:09]} 26. Qe3 {[%clk 0:02:14]}  Nb6 {[%clk 0:02:05]} 27. Bf3 {[%clk 0:02:14]}  Nd5 {[%clk 0:02:04]} 28. Bxd5 {[%clk 0:02:12]}  Qxd5 {[%clk 0:02:04]} 29. Qa3+ {[%clk 0:02:12]}  Ke8 {[%clk 0:01:52]} 30. Qxa7 {[%clk 0:02:10]}  Rc8 {[%clk 0:01:48]} 31. Rb1 {[%clk 0:02:08]}  b5 {[%clk 0:01:39]} 32. a4 {[%clk 0:02:06]}  bxa4 {[%clk 0:01:36]} 33. Rb7 {[%clk 0:02:05]}  Rh7 {[%clk 0:01:32]} 34. Rfb1 {[%clk 0:01:58]}  Kf8 {[%clk 0:01:27]} 35. R1b5 {[%clk 0:01:49]}  Qe4 {[%clk 0:01:26]} 36. Rb8 {[%clk 0:01:41]}  Qxf4+ {[%clk 0:01:23]} 37. Kh1 {[%clk 0:01:41]}  Qc1+ {[%clk 0:01:14]} 38. Kh2 {[%clk 0:01:40]}  Rxb8 {[%clk 0:01:12]} 39. Rxb8+ {[%clk 0:01:39]}  Kg7 {[%clk 0:01:12]} 40. Qa8 {[%clk 0:01:39]}  Kh6 {[%clk 0:01:07]} 41. Rh8 {[%clk 0:01:31]}  c3 {[%clk 0:01:01]} 42. Qf8+ {[%clk 0:01:21]}  Kg5 {[%clk 0:00:59]} 43. Rxh7 {[%clk 0:01:21]}  Qf4+ {[%clk 0:00:58]} 44. Kg1 {[%clk 0:01:20]}  Qc1+ {[%clk 0:00:57]} 45. Kh2 {[%clk 0:01:17]}  Qf4+ {[%clk 0:00:56]} 46. Kg1 {[%clk 0:01:16]}  Qc1+ {[%clk 0:00:55]} 47. Kh2 {[%clk 0:01:16]} 1/2-1/2


[Site "https://www.chess.com"]

[Event "Titled Tuesday Blitz December 27 Late 2022"]
[White "Rego, Pedro Filipe"]
[Black "Marjanovic, Annamaria"]
[WhiteFideId "1904310"]
[BlackFideId "750930"]
[WhiteElo "2312"]
[BlackElo "2273"]
[Result "0-1"]
[Round "11"]
[TimeControl "180+2"]
[Date "2022.12.27"]
[WhiteClock "0:00:01"]
[BlackClock "0:00:06"]

1. d4 {[%clk 0:03:00]}  d5 {[%clk 0:02:57]} 2. Nc3 {[%clk 0:03:00]}  Nf6 {[%clk 0:02:56]} 3. Bf4 {[%clk 0:02:59]}  e6 {[%clk 0:02:49]} 4. e3 {[%clk 0:02:54]}  a6 {[%clk 0:02:46]} 5. Nf3 {[%clk 0:02:46]}  c5 {[%clk 0:02:46]} 6. Be2 {[%clk 0:02:40]}  Nc6 {[%clk 0:02:45]} 7. Ne5 {[%clk 0:02:36]}  cxd4 {[%clk 0:02:39]} 8. exd4 {[%clk 0:02:37]}  Bd6 {[%clk 0:02:39]} 9. Bg3 {[%clk 0:02:12]}  O-O {[%clk 0:02:38]} 10. Nxc6 {[%clk 0:02:06]}  bxc6 {[%clk 0:02:37]} 11. O-O {[%clk 0:02:02]}  c5 {[%clk 0:02:29]} 12. dxc5 {[%clk 0:01:53]}  Bxc5 {[%clk 0:02:28]} 13. Na4 {[%clk 0:01:54]}  Ba7 {[%clk 0:02:20]} 14. c4 {[%clk 0:01:52]}  Bb7 {[%clk 0:02:07]} 15. c5 {[%clk 0:01:41]}  Ne4 {[%clk 0:02:03]} 16. b4 {[%clk 0:01:36]}  Nxg3 {[%clk 0:01:33]} 17. hxg3 {[%clk 0:01:37]}  e5 {[%clk 0:01:27]} 18. Qd2 {[%clk 0:01:27]}  d4 {[%clk 0:01:24]} 19. f3 {[%clk 0:01:22]}  Qd7 {[%clk 0:01:18]} 20. Nb2 {[%clk 0:01:19]}  Bd5 {[%clk 0:01:09]} 21. Bc4 {[%clk 0:01:12]}  Qe6 {[%clk 0:01:01]} 22. Qd3 {[%clk 0:01:08]}  a5 {[%clk 0:00:54]} 23. a3 {[%clk 0:01:02]}  Rab8 {[%clk 0:00:49]} 24. Rfc1 {[%clk 0:00:52]}  axb4 {[%clk 0:00:44]} 25. axb4 {[%clk 0:00:53]}  Rxb4 {[%clk 0:00:44]} 26. Rxa7 {[%clk 0:00:45]}  Rxb2 {[%clk 0:00:43]} 27. Qa3 {[%clk 0:00:32]}  Rbb8 {[%clk 0:00:36]} 28. Ra6 {[%clk 0:00:27]}  Bxc4 {[%clk 0:00:24]} 29. Rxe6 {[%clk 0:00:26]}  Bxe6 {[%clk 0:00:25]} 30. c6 {[%clk 0:00:27]}  Rfc8 {[%clk 0:00:24]} 31. c7 {[%clk 0:00:25]}  Rb6 {[%clk 0:00:21]} 32. Qa7 {[%clk 0:00:20]}  Rd6 {[%clk 0:00:20]} 33. Qc5 {[%clk 0:00:17]}  Rd5 {[%clk 0:00:20]} 34. Qc6 {[%clk 0:00:17]}  d3 {[%clk 0:00:17]} 35. Kf2 {[%clk 0:00:16]}  d2 {[%clk 0:00:16]} 36. Rd1 {[%clk 0:00:17]}  Rd7 {[%clk 0:00:16]} 37. Qc3 {[%clk 0:00:16]}  f6 {[%clk 0:00:14]} 38. Rxd2 {[%clk 0:00:16]}  Rdxc7 {[%clk 0:00:14]} 39. Qa5 {[%clk 0:00:13]}  Kf7 {[%clk 0:00:14]} 40. g4 {[%clk 0:00:12]}  Rd7 {[%clk 0:00:13]} 41. Kg3 {[%clk 0:00:11]}  Rxd2 {[%clk 0:00:12]} 42. Qxd2 {[%clk 0:00:12]}  Rc7 {[%clk 0:00:13]} 43. Qd6 {[%clk 0:00:12]}  Rd7 {[%clk 0:00:13]} 44. Qb6 {[%clk 0:00:13]}  Rd5 {[%clk 0:00:13]} 45. Qb8 {[%clk 0:00:12]}  Rd7 {[%clk 0:00:13]} 46. Qc8 {[%clk 0:00:12]}  Rd5 {[%clk 0:00:12]} 47. Qb7+ {[%clk 0:00:12]}  Rd7 {[%clk 0:00:13]} 48. Qb4 {[%clk 0:00:12]}  h6 {[%clk 0:00:13]} 49. Kh4 {[%clk 0:00:11]}  Rd4 {[%clk 0:00:12]} 50. Qb7+ {[%clk 0:00:10]}  Rd7 {[%clk 0:00:12]} 51. Qb2 {[%clk 0:00:10]}  Re7 {[%clk 0:00:12]} 52. Kg3 {[%clk 0:00:11]}  Rd7 {[%clk 0:00:12]} 53. Qa3 {[%clk 0:00:11]}  Bc4 {[%clk 0:00:11]} 54. Qc3 {[%clk 0:00:11]}  Be6 {[%clk 0:00:11]} 55. Qa3 {[%clk 0:00:11]}  g6 {[%clk 0:00:11]} 56. Qa4 {[%clk 0:00:11]}  Re7 {[%clk 0:00:11]} 57. Qa3 {[%clk 0:00:10]}  f5 {[%clk 0:00:11]} 58. gxf5 {[%clk 0:00:09]}  Bxf5 {[%clk 0:00:12]} 59. Qc1 {[%clk 0:00:09]}  g5 {[%clk 0:00:11]} 60. Qc5 {[%clk 0:00:08]}  Kf6 {[%clk 0:00:11]} 61. Qd6+ {[%clk 0:00:08]}  Re6 {[%clk 0:00:11]} 62. Qf8+ {[%clk 0:00:09]}  Kg6 {[%clk 0:00:12]} 63. Qg8+ {[%clk 0:00:09]}  Kf6 {[%clk 0:00:11]} 64. Qh8+ {[%clk 0:00:09]}  Kg6 {[%clk 0:00:12]} 65. Qg8+ {[%clk 0:00:09]}  Kf6 {[%clk 0:00:12]} 66. Kf2 {[%clk 0:00:10]}  e4 {[%clk 0:00:11]} 67. g4 {[%clk 0:00:09]}  e3+ {[%clk 0:00:10]} 68. Ke1 {[%clk 0:00:09]}  Bg6 {[%clk 0:00:09]} 69. Qh8+ {[%clk 0:00:09]}  Kf7 {[%clk 0:00:09]} 70. Qxh6 {[%clk 0:00:08]}  Re5 {[%clk 0:00:08]} 71. Qh2 {[%clk 0:00:07]}  Kf6 {[%clk 0:00:08]} 72. Qh8+ {[%clk 0:00:07]}  Ke6 {[%clk 0:00:08]} 73. Qc8+ {[%clk 0:00:06]}  Kf6 {[%clk 0:00:08]} 74. Qf8+ {[%clk 0:00:06]}  Ke6 {[%clk 0:00:08]} 75. Ke2 {[%clk 0:00:07]}  Bd3+ {[%clk 0:00:05]} 76. Kxd3 {[%clk 0:00:04]}  e2 {[%clk 0:00:05]} 77. Qg8+ {[%clk 0:00:04]}  Kf6 {[%clk 0:00:05]} 78. Qh8+ {[%clk 0:00:04]}  Ke6 {[%clk 0:00:05]} 79. Qh6+ {[%clk 0:00:04]}  Kd5 {[%clk 0:00:05]} 80. Qh1 {[%clk 0:00:01]}  e1=Q {[%clk 0:00:06]} 81. f4+ {[%clk 0:00:01]}  Qxh1 {[%clk 0:00:06]} 0-1


[Site "https://www.chess.com"]

[Event "Titled Tuesday Blitz December 27 Late 2022"]
[White "Ronka, Erik"]
[Black "reevecanada"]
[WhiteFideId "505080"]
[WhiteElo "2276"]
[BlackElo "2430"]
[Result "1/2-1/2"]
[Round "11"]
[TimeControl "180+2"]
[Date "2022.12.27"]
[WhiteClock "0:00:03"]
[BlackClock "0:00:08"]

1. d4 {[%clk 0:03:00]}  Nf6 {[%clk 0:02:56]} 2. Nf3 {[%clk 0:03:01]}  d5 {[%clk 0:02:56]} 3. g3 {[%clk 0:03:01]}  c6 {[%clk 0:02:56]} 4. Bg2 {[%clk 0:03:02]}  e6 {[%clk 0:02:56]} 5. O-O {[%clk 0:03:02]}  Bd6 {[%clk 0:02:57]} 6. Nbd2 {[%clk 0:03:02]}  Nbd7 {[%clk 0:02:57]} 7. c4 {[%clk 0:03:03]}  e5 {[%clk 0:02:57]} 8. cxd5 {[%clk 0:02:59]}  cxd5 {[%clk 0:02:54]} 9. dxe5 {[%clk 0:02:58]}  Nxe5 {[%clk 0:02:54]} 10. Nxe5 {[%clk 0:02:52]}  Bxe5 {[%clk 0:02:55]} 11. Nf3 {[%clk 0:02:52]}  Bc7 {[%clk 0:02:53]} 12. b3 {[%clk 0:02:40]}  O-O {[%clk 0:02:47]} 13. Bb2 {[%clk 0:02:40]}  Re8 {[%clk 0:02:39]} 14. Rc1 {[%clk 0:02:40]}  Bb6 {[%clk 0:02:37]} 15. Bd4 {[%clk 0:02:33]}  Bd7 {[%clk 0:02:30]} 16. Qd3 {[%clk 0:02:23]}  a6 {[%clk 0:02:19]} 17. Bxb6 {[%clk 0:02:13]}  Qxb6 {[%clk 0:02:20]} 18. Nd4 {[%clk 0:01:52]}  Rac8 {[%clk 0:02:17]} 19. h3 {[%clk 0:01:48]}  Ne4 {[%clk 0:02:13]} 20. Rxc8 {[%clk 0:01:24]}  Rxc8 {[%clk 0:02:08]} 21. Nf3 {[%clk 0:01:13]}  Nxg3 {[%clk 0:01:59]} 22. Rd1 {[%clk 0:01:06]}  Bb5 {[%clk 0:01:57]} 23. Qxd5 {[%clk 0:00:58]}  Nxe2+ {[%clk 0:01:55]} 24. Kh1 {[%clk 0:00:54]}  h6 {[%clk 0:01:50]} 25. Ne5 {[%clk 0:00:52]}  Qxf2 {[%clk 0:01:45]} 26. Qxb7 {[%clk 0:00:16]}  Re8 {[%clk 0:01:32]} 27. Ng4 {[%clk 0:00:14]}  Qf4 {[%clk 0:01:19]} 28. a4 {[%clk 0:00:14]}  Ng3+ {[%clk 0:01:17]} 29. Kg1 {[%clk 0:00:14]}  Be2 {[%clk 0:01:07]} 30. Re1 {[%clk 0:00:14]}  h5 {[%clk 0:00:58]} 31. Nf2 {[%clk 0:00:14]}  Qd2 {[%clk 0:00:54]} 32. Ra1 {[%clk 0:00:13]}  Re6 {[%clk 0:00:49]} 33. Qb8+ {[%clk 0:00:11]}  Kh7 {[%clk 0:00:45]} 34. Qxg3 {[%clk 0:00:12]}  Rg6 {[%clk 0:00:45]} 35. Be4 {[%clk 0:00:11]}  Qd4 {[%clk 0:00:14]} 36. Bxg6+ {[%clk 0:00:10]}  fxg6 {[%clk 0:00:14]} 37. Re1 {[%clk 0:00:11]}  Qd2 {[%clk 0:00:12]} 38. Ne4 {[%clk 0:00:11]}  Qd4+ {[%clk 0:00:12]} 39. Qf2 {[%clk 0:00:09]}  Qxe4 {[%clk 0:00:10]} 40. Rxe2 {[%clk 0:00:10]}  Qb1+ {[%clk 0:00:10]} 41. Kg2 {[%clk 0:00:10]}  Qxb3 {[%clk 0:00:11]} 42. Re4 {[%clk 0:00:09]}  Qd5 {[%clk 0:00:10]} 43. Qf3 {[%clk 0:00:09]}  Qd2+ {[%clk 0:00:11]} 44. Re2 {[%clk 0:00:09]}  Qg5+ {[%clk 0:00:12]} 45. Qg3 {[%clk 0:00:08]}  Qd5+ {[%clk 0:00:12]} 46. Kh2 {[%clk 0:00:09]}  Qf5 {[%clk 0:00:11]} 47. Rf2 {[%clk 0:00:09]}  Qd7 {[%clk 0:00:11]} 48. h4 {[%clk 0:00:09]}  Qxa4 {[%clk 0:00:10]} 49. Rg2 {[%clk 0:00:09]}  Qe8 {[%clk 0:00:10]} 50. Qg5 {[%clk 0:00:08]}  a5 {[%clk 0:00:10]} 51. Qxa5 {[%clk 0:00:08]}  Qb8+ {[%clk 0:00:10]} 52. Kh3 {[%clk 0:00:07]}  Qc8+ {[%clk 0:00:10]} 53. Kh2 {[%clk 0:00:06]}  Qb8+ {[%clk 0:00:10]} 54. Rg3 {[%clk 0:00:06]}  Qb2+ {[%clk 0:00:10]} 55. Kh3 {[%clk 0:00:07]}  Qf2 {[%clk 0:00:09]} 56. Qd5 {[%clk 0:00:06]}  Qf1+ {[%clk 0:00:09]} 57. Qg2 {[%clk 0:00:06]}  Qf5+ {[%clk 0:00:09]} 58. Kh2 {[%clk 0:00:06]}  Qf4 {[%clk 0:00:09]} 59. Kg1 {[%clk 0:00:06]}  Qxh4 {[%clk 0:00:08]} 60. Rxg6 {[%clk 0:00:05]}  Qe1+ {[%clk 0:00:08]} 61. Kh2 {[%clk 0:00:04]}  Qh4+ {[%clk 0:00:09]} 62. Kg1 {[%clk 0:00:03]}  Qd4+ {[%clk 0:00:09]} 63. Kh1 {[%clk 0:00:03]}  Qh4+ {[%clk 0:00:08]} 64. Kg1 {[%clk 0:00:03]} 1/2-1/2


[Site "https://www.chess.com"]

[Event "Titled Tuesday Blitz December 27 Late 2022"]
[White "Skvortsov, Andrei"]
[Black "Bogaudinov, Rushan"]
[WhiteFideId "24108600"]
[BlackFideId "4129288"]
[WhiteElo "2313"]
[BlackElo "1939"]
[Result "1-0"]
[Round "11"]
[TimeControl "180+2"]
[Date "2022.12.27"]
[WhiteClock "0:00:12"]
[BlackClock "0:00:01"]

1. d4 {[%clk 0:02:58]}  Nf6 {[%clk 0:02:56]} 2. c4 {[%clk 0:02:57]}  e6 {[%clk 0:02:56]} 3. Nc3 {[%clk 0:02:54]}  d5 {[%clk 0:02:56]} 4. cxd5 {[%clk 0:02:53]}  exd5 {[%clk 0:02:56]} 5. Bg5 {[%clk 0:02:53]}  c6 {[%clk 0:02:56]} 6. Nf3 {[%clk 0:02:53]}  Be7 {[%clk 0:02:55]} 7. e3 {[%clk 0:02:53]}  Nbd7 {[%clk 0:02:55]} 8. Bd3 {[%clk 0:02:48]}  h6 {[%clk 0:02:54]} 9. Bh4 {[%clk 0:02:48]}  O-O {[%clk 0:02:52]} 10. Qc2 {[%clk 0:02:44]}  Re8 {[%clk 0:02:51]} 11. O-O {[%clk 0:02:36]}  Ne4 {[%clk 0:02:51]} 12. Bxe7 {[%clk 0:02:35]}  Qxe7 {[%clk 0:02:52]} 13. Nd2 {[%clk 0:02:25]}  Nxd2 {[%clk 0:02:40]} 14. Qxd2 {[%clk 0:02:25]}  Nf6 {[%clk 0:02:39]} 15. Rab1 {[%clk 0:02:20]}  a5 {[%clk 0:02:34]} 16. a3 {[%clk 0:02:19]}  h5 {[%clk 0:02:33]} 17. b4 {[%clk 0:02:18]}  axb4 {[%clk 0:02:34]} 18. axb4 {[%clk 0:02:19]}  h4 {[%clk 0:02:30]} 19. h3 {[%clk 0:02:11]}  Be6 {[%clk 0:02:04]} 20. Ne2 {[%clk 0:02:00]}  g5 {[%clk 0:01:49]} 21. f4 {[%clk 0:01:59]}  g4 {[%clk 0:01:37]} 22. Nc3 {[%clk 0:01:40]}  gxh3 {[%clk 0:01:29]} 23. f5 {[%clk 0:01:40]}  Bd7 {[%clk 0:01:15]} 24. Rf3 {[%clk 0:01:32]}  h2+ {[%clk 0:00:45]} 25. Kxh2 {[%clk 0:01:28]}  Qd6+ {[%clk 0:00:46]} 26. Kg1 {[%clk 0:01:20]}  Ng4 {[%clk 0:00:44]} 27. Rf4 {[%clk 0:01:13]}  Nxe3 {[%clk 0:00:37]} 28. Rxh4 {[%clk 0:01:05]}  Qf6 {[%clk 0:00:31]} 29. Qf2 {[%clk 0:00:51]}  Ra3 {[%clk 0:00:25]} 30. Rc1 {[%clk 0:00:44]}  Bxf5 {[%clk 0:00:18]} 31. Rf4 {[%clk 0:00:40]}  Qg5 {[%clk 0:00:04]} 32. g3 {[%clk 0:00:20]}  Ng4 {[%clk 0:00:04]} 33. Qf3 {[%clk 0:00:15]}  Be6 {[%clk 0:00:01]} 34. Bf5 {[%clk 0:00:12]} 1-0


[Site "https://www.chess.com"]

[Event "Titled Tuesday Blitz December 27 Late 2022"]
[White "Solon, Nathan"]
[Black "Rustemov, Alexander"]
[WhiteFideId "2017229"]
[BlackFideId "4119002"]
[WhiteElo "2306"]
[BlackElo "2525"]
[Result "0-1"]
[Round "11"]
[TimeControl "180+2"]
[Date "2022.12.27"]
[WhiteClock "0:01:52"]
[BlackClock "0:02:21"]

1. Nf3 {[%clk 0:02:57]}  d5 {[%clk 0:02:59]} 2. g3 {[%clk 0:02:57]}  Nf6 {[%clk 0:02:58]} 3. Bg2 {[%clk 0:02:58]}  Bf5 {[%clk 0:02:58]} 4. O-O {[%clk 0:02:57]}  e6 {[%clk 0:02:58]} 5. c4 {[%clk 0:02:58]}  Nbd7 {[%clk 0:02:50]} 6. d3 {[%clk 0:02:46]}  dxc4 {[%clk 0:02:46]} 7. dxc4 {[%clk 0:02:45]}  c6 {[%clk 0:02:39]} 8. Nc3 {[%clk 0:02:45]}  Be7 {[%clk 0:02:33]} 9. b3 {[%clk 0:02:37]}  h6 {[%clk 0:02:30]} 10. Bb2 {[%clk 0:02:37]}  O-O {[%clk 0:02:30]} 11. Qc1 {[%clk 0:02:17]}  Qc7 {[%clk 0:02:28]} 12. Rd1 {[%clk 0:02:17]}  Rfd8 {[%clk 0:02:27]} 13. h3 {[%clk 0:02:06]}  a5 {[%clk 0:02:25]} 14. Qe3 {[%clk 0:01:58]}  Bc5 {[%clk 0:02:23]} 15. Qc1 {[%clk 0:01:52]}  Qxg3 {[%clk 0:02:21]} 0-1


[Site "https://www.chess.com"]

[Event "Titled Tuesday Blitz December 27 Late 2022"]
[White "Sos Andreu, Eric"]
[Black "Balague Camps, Marc"]
[WhiteFideId "22247017"]
[BlackFideId "2297914"]
[WhiteElo "2352"]
[BlackElo "2190"]
[Result "0-1"]
[Round "11"]
[TimeControl "180+2"]
[Date "2022.12.27"]
[WhiteClock "0:00:22"]
[BlackClock "0:00:51"]

1. d4 {[%clk 0:02:55]}  c5 {[%clk 0:02:59]} 2. d5 {[%clk 0:02:55]}  e5 {[%clk 0:03:00]} 3. c4 {[%clk 0:02:55]}  d6 {[%clk 0:03:00]} 4. Nc3 {[%clk 0:02:55]}  g6 {[%clk 0:03:01]} 5. e4 {[%clk 0:02:55]}  Bg7 {[%clk 0:03:02]} 6. Bd3 {[%clk 0:02:53]}  Nf6 {[%clk 0:02:58]} 7. Nge2 {[%clk 0:02:53]}  O-O {[%clk 0:02:59]} 8. O-O {[%clk 0:02:53]}  Ne8 {[%clk 0:02:55]} 9. Rb1 {[%clk 0:02:50]}  Nd7 {[%clk 0:02:50]} 10. a3 {[%clk 0:02:49]}  f5 {[%clk 0:02:48]} 11. b4 {[%clk 0:02:49]}  f4 {[%clk 0:02:45]} 12. f3 {[%clk 0:02:48]}  a5 {[%clk 0:02:39]} 13. Bd2 {[%clk 0:02:39]}  axb4 {[%clk 0:02:37]} 14. axb4 {[%clk 0:02:39]}  cxb4 {[%clk 0:02:38]} 15. Rxb4 {[%clk 0:02:37]}  Nc5 {[%clk 0:02:38]} 16. Be1 {[%clk 0:02:29]}  Ra3 {[%clk 0:02:36]} 17. Bf2 {[%clk 0:02:21]}  g5 {[%clk 0:02:06]} 18. Bc2 {[%clk 0:02:03]}  g4 {[%clk 0:02:03]} 19. Bxc5 {[%clk 0:01:50]}  dxc5 {[%clk 0:02:03]} 20. Rb3 {[%clk 0:01:44]}  Ra6 {[%clk 0:02:02]} 21. Nb5 {[%clk 0:01:39]}  Rh6 {[%clk 0:01:59]} 22. fxg4 {[%clk 0:01:30]}  Bxg4 {[%clk 0:01:55]} 23. h3 {[%clk 0:01:28]}  f3 {[%clk 0:01:07]} 24. hxg4 {[%clk 0:01:11]}  fxe2 {[%clk 0:01:08]} 25. Rxf8+ {[%clk 0:01:07]}  Bxf8 {[%clk 0:01:07]} 26. Qxe2 {[%clk 0:01:06]}  Rg6 {[%clk 0:01:06]} 27. Bd1 {[%clk 0:00:58]}  Bh6 {[%clk 0:01:05]} 28. Qf2 {[%clk 0:00:45]}  Rf6 {[%clk 0:01:00]} 29. Bf3 {[%clk 0:00:44]}  Qa5 {[%clk 0:00:57]} 30. Ra3 {[%clk 0:00:37]}  Qb4 {[%clk 0:00:54]} 31. Ra5 {[%clk 0:00:27]}  Qxa5 {[%clk 0:00:52]} 32. Qxc5 {[%clk 0:00:25]}  Qe1+ {[%clk 0:00:51]} 33. Kh2 {[%clk 0:00:24]}  Bf4+ {[%clk 0:00:52]} 34. Kh3 {[%clk 0:00:22]}  Qg3# {[%clk 0:00:51]} 0-1


[Site "https://www.chess.com"]

[Event "Titled Tuesday Blitz December 27 Late 2022"]
[White "Sukandar, Irine Kharisma"]
[Black "Pakleza, Zbigniew"]
[WhiteFideId "7101937"]
[BlackFideId "1119290"]
[WhiteElo "2390"]
[BlackElo "2494"]
[Result "0-1"]
[Round "11"]
[TimeControl "180+2"]
[Date "2022.12.27"]
[WhiteClock "0:00:05"]
[BlackClock "0:00:04"]

1. e4 {[%clk 0:02:57]}  d6 {[%clk 0:02:58]} 2. d4 {[%clk 0:02:56]}  Nf6 {[%clk 0:02:58]} 3. Nc3 {[%clk 0:02:57]}  c6 {[%clk 0:02:57]} 4. h3 {[%clk 0:02:55]}  b5 {[%clk 0:02:56]} 5. Bd3 {[%clk 0:02:55]}  e5 {[%clk 0:02:56]} 6. Nf3 {[%clk 0:02:54]}  Nbd7 {[%clk 0:02:55]} 7. Be3 {[%clk 0:02:51]}  Bb7 {[%clk 0:02:55]} 8. Qd2 {[%clk 0:02:45]}  Be7 {[%clk 0:02:53]} 9. a4 {[%clk 0:02:45]}  b4 {[%clk 0:02:51]} 10. Ne2 {[%clk 0:02:46]}  a5 {[%clk 0:02:51]} 11. Ng3 {[%clk 0:02:44]}  O-O {[%clk 0:02:52]} 12. O-O {[%clk 0:02:43]}  Re8 {[%clk 0:02:52]} 13. c3 {[%clk 0:02:43]}  bxc3 {[%clk 0:02:47]} 14. bxc3 {[%clk 0:02:43]}  Qc7 {[%clk 0:02:47]} 15. Rfb1 {[%clk 0:02:43]}  Bf8 {[%clk 0:02:47]} 16. Qc2 {[%clk 0:02:36]}  Rab8 {[%clk 0:02:38]} 17. Bc4 {[%clk 0:02:29]}  d5 {[%clk 0:02:27]} 18. exd5 {[%clk 0:02:27]}  cxd5 {[%clk 0:02:28]} 19. Bb5 {[%clk 0:02:25]}  e4 {[%clk 0:02:22]} 20. Ne5 {[%clk 0:02:21]}  Nxe5 {[%clk 0:02:21]} 21. Bxe8 {[%clk 0:02:21]}  Nc4 {[%clk 0:02:19]} 22. Bb5 {[%clk 0:02:13]}  Nxe3 {[%clk 0:02:18]} 23. Qe2 {[%clk 0:01:38]}  Nc4 {[%clk 0:02:16]} 24. Bxc4 {[%clk 0:01:34]}  dxc4 {[%clk 0:02:12]} 25. Rb5 {[%clk 0:01:33]}  Bd5 {[%clk 0:02:00]} 26. Rab1 {[%clk 0:01:27]}  Re8 {[%clk 0:01:53]} 27. Nf5 {[%clk 0:01:26]}  Bc6 {[%clk 0:01:43]} 28. Qxc4 {[%clk 0:01:22]}  Qd7 {[%clk 0:01:24]} 29. Rxa5 {[%clk 0:01:20]}  Bd5 {[%clk 0:01:19]} 30. Qb5 {[%clk 0:00:48]}  Qxf5 {[%clk 0:01:12]} 31. c4 {[%clk 0:00:48]}  e3 {[%clk 0:01:11]} 32. fxe3 {[%clk 0:00:47]}  Rxe3 {[%clk 0:00:47]} 33. cxd5 {[%clk 0:00:46]}  Qe4 {[%clk 0:00:28]} 34. Qf1 {[%clk 0:00:27]}  h5 {[%clk 0:00:25]} 35. Ra8 {[%clk 0:00:26]}  Nxd5 {[%clk 0:00:09]} 36. Rbb8 {[%clk 0:00:20]}  Re1 {[%clk 0:00:07]} 37. Rxf8+ {[%clk 0:00:20]}  Kh7 {[%clk 0:00:07]} 38. Rxf7 {[%clk 0:00:06]}  Rxf1+ {[%clk 0:00:03]} 39. Rxf1 {[%clk 0:00:05]}  Ne3 {[%clk 0:00:04]} 0-1


[Site "https://www.chess.com"]